fUST/lending_fUST_20240805
["ID","MTS","AMOUNT","RATE_DAILY","PERIOD"]
[334243587,1722855977453,-500.0,0.00045479,31]
[334243588,1722855977500,-574.39,0.00045479,31]
[334243589,1722855977557,-595.43,0.00045479,31]
[334243590,1722855977608,-500.0,0.00045479,31]
[334243591,1722855977656,-866.48,0.00045479,31]
[334243592,1722855977704,-500.0,0.00045479,31]
[334243593,1722855977750,-500.0,0.00045479,31]
[334243594,1722855977807,-500.0,0.00045479,31]
[334243595,1722855977854,-902.94,0.00045479,31]
[334243596,1722855977905,-500.0,0.00045479,31]
[334243597,1722855977955,-500.0,0.00045479,31]
[334243598,1722855978012,-500.0,0.00045479,31]
[334243599,1722855978062,-500.0,0.00045479,31]
[334243600,1722855978109,-500.0,0.00045479,31]
[334243601,1722855978166,-500.0,0.00045479,31]
[334243602,1722855978216,-943.74,0.00045479,31]
[334243603,1722855978265,-500.0,0.00045479,31]
[334243604,1722855978313,-500.0,0.00045479,31]
[334243605,1722855978361,-584.69,0.00045479,31]
[334243606,1722855978411,-1305.1,0.00045479,31]
[334243607,1722855978458,-582.29657956,0.00045479,31]
[334243608,1722855978510,-553.49,0.00045479,31]
[334243609,1722855978559,-500.0,0.00045479,31]
[334243610,1722855978610,-500.0,0.00045479,31]
[334243611,1722855978662,-518.0455085,0.00045479,31]
[334243612,1722855978711,-898.41,0.00045479,31]
[334243613,1722855978766,-500.0,0.00045479,31]
[334243614,1722855978815,-500.0,0.00045479,31]
[334243615,1722855978865,-187.17371259,0.00045479,31]
[334243616,1722855978914,-613.99,0.00045479,31]
[334243617,1722855978963,-500.0,0.00045479,31]
[334243618,1722855979012,-530.57,0.00045479,31]
[334243619,1722855979062,-500.0,0.00045479,31]
[334243620,1722855979113,-616.76,0.00045479,31]
[334243621,1722855979163,-500.0,0.00045479,31]
[334243622,1722855979214,-694.59,0.00045479,31]
[334243623,1722855979266,-1013.28,0.00045479,31]
[334243624,1722855979317,-500.0,0.00045479,31]
[334243625,1722855979368,-500.0,0.00045479,31]
[334243626,1722855979421,-500.0,0.00045479,31]
[334243627,1722855979475,-1321.46,0.00045479,31]
[334243628,1722855979527,-615.54,0.00045479,31]
[334243629,1722855979578,-952.95,0.00045479,31]
[334243630,1722855979631,-538.82,0.00045479,31]
[334243631,1722855979684,-500.0,0.00045479,31]
[334243632,1722855979735,-500.0,0.00045479,31]
[334243633,1722855979794,-500.0,0.00045479,31]
[334243634,1722855979845,-702.68,0.00045479,31]
[334243635,1722855979896,-500.0,0.00045479,31]
[334243636,1722855979948,-1814.25,0.00045479,31]
[334243637,1722855979997,-753.6,0.00045479,31]
[334243638,1722855980055,-1640.04,0.00045479,31]
[334243639,1722855980104,-500.0,0.00045479,31]
[334243640,1722855980152,-500.0,0.00045479,31]
[334243641,1722855980199,-500.0,0.00045479,31]
[334243642,1722855980245,-505.33,0.00045479,31]
[334243643,1722855980295,-408.23681991,0.00045479,31]
[334243644,1722855980340,-790.04,0.00045479,31]
[334243645,1722855980386,-1310.1,0.00045479,31]
[334243646,1722855980435,-994.56,0.00045479,31]
[334243647,1722855980487,-549.92,0.00045479,31]
[334243648,1722855980547,-229.36681314,0.00045479,31]
[334243649,1722855980596,-500.0,0.00045479,31]
[334243650,1722855980647,-908.96,0.00045479,31]
[334243651,1722855980698,-500.0,0.00045479,31]
[334243652,1722855980748,-727.99,0.00045479,31]
[334243653,1722855980804,-500.0,0.00045479,31]
[334243654,1722855980853,-178.11299905,0.00045479,31]
[334243655,1722855980905,-9665.63,0.00045479,31]
[334243656,1722855980956,-857.1,0.00045479,31]
[334243657,1722855981003,-500.0,0.00045479,31]
[334243658,1722855981064,-500.0,0.00045479,31]
[334243659,1722855981115,-803.81,0.00045479,31]
[334243660,1722855981168,-825.94,0.00045479,31]
[334243661,1722855981218,-12236.57,0.00045479,120]
[334243662,1722855981273,-500.0,0.00045479,31]
[334243663,1722855981329,-3748.41,0.00045479,31]
[334243664,1722855981378,-500.0,0.00045479,31]
[334243665,1722855981426,-2909.32,0.00045479,31]
[334243666,1722855981475,-500.0,0.00045479,31]
[334243667,1722855981524,-500.0,0.00045479,31]
[334243668,1722855981694,-500.0,0.00045479,31]
[334243669,1722855981750,-500.0,0.00045479,31]
[334243670,1722855981814,-767.28,0.00045479,31]
[334243671,1722855981863,-4015.88,0.00045479,31]
[334243672,1722855981910,-500.0,0.00045479,31]
[334243673,1722855981956,-500.0,0.00045479,31]
[334243674,1722855982001,-1014.51,0.00045479,31]
[334243675,1722855982051,-1174.29,0.00045479,31]
[334243676,1722855982097,-754.85,0.00045479,31]
[334243677,1722855982149,-1374.17,0.00045479,31]
[334243678,1722855982198,-1031.24,0.00045479,31]
[334243679,1722855982246,-579.15402184,0.00045479,31]
[334243680,1722855982299,-500.0,0.00045479,31]
[334243681,1722855982347,-500.0,0.00045479,31]
[334243682,1722855982395,-670.71,0.00045479,31]
[334243683,1722855982444,-500.0,0.00045479,31]
[334243684,1722855982491,-2005.0,0.00045479,31]
[334243685,1722855982540,-263.17369973,0.00045479,31]
[334243686,1722855982586,-1974.46,0.00045479,31]
[334243687,1722855982631,-1304.72,0.00045479,31]
[334243688,1722855982675,-500.0,0.00045479,31]
[334243689,1722855982721,-500.0,0.00045479,31]
[334243690,1722855982770,-500.0,0.00045479,31]
[334243691,1722855982819,-939.28,0.00045479,31]
[334243692,1722855982869,-552.41,0.00045479,31]
[334243693,1722855982917,-524.54,0.00045479,31]
[334243694,1722855982962,-500.0,0.00045479,31]
[334243695,1722855983016,-6176.67,0.00045479,31]
[334243696,1722855983061,-1355.54,0.00045479,31]
[334243697,1722855983109,-782.29,0.00045479,31]
[334243698,1722855983161,-820.99,0.00045479,31]
[334243699,1722855983211,-982.1,0.00045479,31]
[334243700,1722855983260,-500.0,0.00045479,31]
[334243701,1722855983309,-1102.87,0.00045479,31]
[334243702,1722855983354,-1011.48,0.00045479,31]
[334243703,1722855983401,-640.04,0.00045479,31]
[334243704,1722855983448,-500.0,0.00045479,31]
[334243705,1722855983494,-500.0,0.00045479,31]
[334243706,1722855983546,-499.54531195,0.00045479,31]
[334243707,1722855983591,-804.3,0.00045479,31]
[334243708,1722855983640,-4630.0,0.00045479,31]
[334243709,1722855983690,-1003.21,0.00045479,31]
[334243710,1722855983740,-767.0,0.00045479,31]
[334243711,1722855983794,-500.0,0.00045479,31]
[334243712,1722855983845,-500.0,0.00045479,31]
[334243713,1722855983898,-523.0,0.00046,120]
[334243714,1722855983954,-162.71451071,0.00046,120]
[334243715,1722855984009,-3978.22781096,0.00046,120]
[334243716,1722855984069,-400.0,0.00046,30]
[334243717,1722855984119,-500.0,0.00046027,31]
[334243718,1722855984168,-500.0,0.00046027,31]
[334243719,1722855984217,-500.0,0.00046027,31]
[334243720,1722855984275,-648.07,0.00046027,31]
[334243721,1722855984330,-629.74,0.00046027,31]
[334243722,1722855984384,-1276.5,0.00046027,31]
[334243723,1722855984439,-556.09,0.00046027,31]
[334243724,1722855984492,-500.0,0.00046027,31]
[334243725,1722855984554,-500.0,0.00046027,31]
[334243726,1722855984606,-500.0,0.00046027,31]
[334243727,1722855984657,-500.0,0.00046027,31]
[334243728,1722855984708,-500.0,0.00046027,31]
[334243729,1722855984769,-500.0,0.00046027,31]
[334243730,1722855984821,-574.39,0.00046027,31]
[334243731,1722855984873,-595.43,0.00046027,31]
[334243732,1722855984925,-500.0,0.00046027,31]
[334243733,1722855984977,-866.48,0.00046027,31]
[334243734,1722855985028,-334.14068737,0.00046027,31]
[334243735,1722855985079,-500.0,0.00046027,31]
[334243736,1722855985132,-500.0,0.00046027,31]
[334243737,1722855985183,-902.94,0.00046027,31]
[334243738,1722855985237,-500.0,0.00046027,31]
[334243739,1722855985288,-500.0,0.00046027,31]
[334243740,1722855985340,-500.0,0.00046027,31]
[334243741,1722855985392,-341.75426744,0.00046027,31]
[334243742,1722855985445,-500.0,0.00046027,31]
[334243743,1722855985496,-500.0,0.00046027,31]
[334243744,1722855985550,-943.74,0.00046027,31]
[334243745,1722855985601,-500.0,0.00046027,31]
[334243746,1722855985651,-500.0,0.00046027,31]
[334243747,1722855985700,-1305.1,0.00046027,31]
[334243748,1722855985753,-584.69,0.00046027,31]
[334243749,1722855985805,-553.49,0.00046027,31]
[334243750,1722855985854,-500.0,0.00046027,31]
[334243751,1722855985904,-500.0,0.00046027,31]
[334243752,1722855985952,-898.41,0.00046027,31]
[334243753,1722855985998,-580.15476894,0.00046027,31]
[334243754,1722855986056,-500.0,0.00046027,31]
[334243755,1722855986105,-613.99,0.00046027,31]
[334243756,1722855986155,-500.0,0.00046027,31]
[334243757,1722855986202,-530.57,0.00046027,31]
[334243758,1722855986248,-500.0,0.00046027,31]
[334243759,1722855986306,-616.76,0.00046027,31]
[334243760,1722855986356,-500.0,0.00046027,31]
[334243761,1722855986403,-694.59,0.00046027,31]
[334243762,1722855986450,-1013.28,0.00046027,31]
[334243763,1722855986496,-500.0,0.00046027,31]
[334243764,1722855986546,-500.0,0.00046027,31]
[334243765,1722855986592,-500.0,0.00046027,31]
[334243766,1722855986639,-1321.46,0.00046027,31]
[334243767,1722855986685,-615.54,0.00046027,31]
[334243768,1722855986732,-952.95,0.00046027,31]
[334243769,1722855986779,-538.82,0.00046027,31]
[334243770,1722855986826,-500.0,0.00046027,31]
[334243771,1722855986873,-500.0,0.00046027,31]
[334243772,1722855987062,-500.0,0.00046027,31]
[334243773,1722855987116,-702.68,0.00046027,31]
[334243774,1722855987176,-500.0,0.00046027,31]
[334243775,1722855987233,-1814.25,0.00046027,31]
[334243776,1722855987289,-753.6,0.00046027,31]
[334243777,1722855987345,-1640.04,0.00046027,31]
[334243778,1722855987396,-629.73203129,0.00046027,31]
[334243779,1722855987445,-500.0,0.00046027,31]
[334243780,1722855987493,-500.0,0.00046027,31]
[334243781,1722855987540,-505.33,0.00046027,31]
[334243782,1722855987587,-790.04,0.00046027,31]
[334243783,1722855987634,-1310.1,0.00046027,31]
[334243784,1722855987681,-994.56,0.00046027,31]
[334243785,1722855987730,-549.92,0.00046027,31]
[334243786,1722855987780,-608.93745595,0.00046027,31]
[334243787,1722855987825,-908.96,0.00046027,31]
[334243788,1722855987869,-500.0,0.00046027,31]
[334243789,1722855987915,-727.99,0.00046027,31]
[334243790,1722855987961,-500.0,0.00046027,31]
[334243791,1722855988010,-9665.63,0.00046027,31]
[334243792,1722855988061,-857.1,0.00046027,31]
[334243793,1722855988111,-500.0,0.00046027,31]
[334243794,1722855988158,-500.0,0.00046027,31]
[334243795,1722855988206,-803.81,0.00046027,31]
[334243796,1722855988251,-825.94,0.00046027,31]
[334243797,1722855988305,-12236.57,0.00046027,120]
[334243798,1722855988353,-500.0,0.00046027,31]
[334243799,1722855988399,-3748.41,0.00046027,31]
[334243800,1722855988454,-500.0,0.00046027,31]
[334243801,1722855988500,-2909.32,0.00046027,31]
[334243802,1722855988549,-500.0,0.00046027,31]
[334243803,1722855988596,-500.0,0.00046027,31]
[334243804,1722855988644,-500.0,0.00046027,31]
[334243805,1722855988691,-414.16914783,0.00046027,31]
[334243806,1722855988738,-767.28,0.00046027,31]
[334243807,1722855988786,-4015.88,0.00046027,31]
[334243808,1722855988834,-500.0,0.00046027,31]
[334243809,1722855988883,-500.0,0.00046027,31]
[334243810,1722855988933,-1014.51,0.00046027,31]
[334243811,1722855988982,-1174.29,0.00046027,31]
[334243812,1722855989030,-754.85,0.00046027,31]
[334243813,1722855989077,-1374.17,0.00046027,31]
[334243814,1722855989125,-1031.24,0.00046027,31]
[334243815,1722855989174,-500.0,0.00046027,31]
[334243816,1722855989222,-500.0,0.00046027,31]
[334243817,1722855989271,-670.71,0.00046027,31]
[334243818,1722855989316,-500.0,0.00046027,31]
[334243819,1722855989363,-2005.0,0.00046027,31]
[334243820,1722855989410,-1974.46,0.00046027,31]
[334243821,1722855989459,-1304.72,0.00046027,31]
[334243822,1722855989507,-500.0,0.00046027,31]
[334243823,1722855989556,-500.0,0.00046027,31]
[334243824,1722855989606,-500.0,0.00046027,31]
[334243825,1722855989655,-552.41,0.00046027,31]
[334243826,1722855989703,-939.28,0.00046027,31]
[334243827,1722855989750,-524.54,0.00046027,31]
[334243828,1722855989803,-500.0,0.00046027,31]
[334243829,1722855989852,-6176.67,0.00046027,31]
[334243830,1722855989902,-1355.54,0.00046027,31]
[334243831,1722855989950,-820.99,0.00046027,31]
[334243832,1722855989998,-982.1,0.00046027,31]
[334243833,1722855990059,-782.29,0.00046027,31]
[334243834,1722855990112,-547.50505462,0.00046027,31]
[334243835,1722855990161,-1102.87,0.00046027,31]
[334243836,1722855990211,-1011.48,0.00046027,31]
[334243837,1722855990267,-640.04,0.00046027,31]
[334243838,1722855990321,-500.0,0.00046027,31]
[334243839,1722855990372,-500.0,0.00046027,31]
[334243840,1722855990423,-804.3,0.00046027,31]
[334243841,1722855990473,-4630.0,0.00046027,31]
[334243842,1722855990524,-1003.21,0.00046027,31]
[334243843,1722855990575,-767.0,0.00046027,31]
[334243844,1722855990627,-500.0,0.00046027,31]
[334243845,1722855990677,-518.00993967,0.00046027,31]
[334243846,1722855990728,-6399.48614289,0.00046059,61]
[334243847,1722855990776,-927938.5331536,0.0004606,30]
[334243848,1722855990828,-151.0,0.00046274,120]
[334243849,1722855990879,-316.65,0.000463,30]
[334243850,1722855990940,-151.0,0.00046384,120]
[334243851,1722855990999,-500.0,0.00046575,31]
[334243852,1722855991068,-500.0,0.00046575,31]
[334243853,1722855991122,-500.0,0.00046575,31]
[334243854,1722855991175,-648.07,0.00046575,31]
[334243855,1722855991224,-629.74,0.00046575,31]
[334243856,1722855991276,-1276.5,0.00046575,31]
[334243857,1722855991324,-556.09,0.00046575,31]
[334243858,1722855991374,-500.0,0.00046575,31]
[334243859,1722855991421,-500.0,0.00046575,31]
[334243860,1722855991467,-500.0,0.00046575,31]
[334243861,1722855991521,-500.0,0.00046575,31]
[334243862,1722855991567,-500.0,0.00046575,31]
[334243863,1722855991617,-500.0,0.00046575,31]
[334243864,1722855991662,-574.39,0.00046575,31]
[334243865,1722855991707,-595.43,0.00046575,31]
[334243866,1722855991755,-500.0,0.00046575,31]
[334243867,1722855991806,-866.48,0.00046575,31]
[334243868,1722855991854,-500.0,0.00046575,31]
[334243869,1722855991901,-500.0,0.00046575,31]
[334243870,1722855991947,-902.94,0.00046575,31]
[334243871,1722855991991,-500.0,0.00046575,31]
[334243872,1722855992037,-500.0,0.00046575,31]
[334243873,1722855992083,-500.0,0.00046575,31]
[334243874,1722855992129,-305.66652419,0.00046575,31]
[334243875,1722855992314,-500.0,0.00046575,31]
[334243876,1722855992361,-943.74,0.00046575,31]
[334243877,1722855992408,-500.0,0.00046575,31]
[334243878,1722855992454,-500.0,0.00046575,31]
[334243879,1722855992501,-1305.1,0.00046575,31]
[334243880,1722855992560,-584.69,0.00046575,31]
[334243881,1722855992611,-553.49,0.00046575,31]
[334243882,1722855992661,-500.0,0.00046575,31]
[334243883,1722855992710,-500.0,0.00046575,31]
[334243884,1722855992757,-898.41,0.00046575,31]
[334243885,1722855992813,-500.0,0.00046575,31]
[334243886,1722855992860,-613.99,0.00046575,31]
[334243887,1722855992907,-500.0,0.00046575,31]
[334243888,1722855992954,-530.57,0.00046575,31]
[334243889,1722855993000,-400.64675031,0.00046575,31]
[334243890,1722855993055,-616.76,0.00046575,31]
[334243891,1722855993103,-500.0,0.00046575,31]
[334243892,1722855993158,-694.59,0.00046575,31]
[334243893,1722855993208,-1013.28,0.00046575,31]
[334243894,1722855993256,-500.0,0.00046575,31]
[334243895,1722855993308,-500.0,0.00046575,31]
[334243896,1722855993355,-500.0,0.00046575,31]
[334243897,1722855993403,-1321.46,0.00046575,31]
[334243898,1722855993453,-615.54,0.00046575,31]
[334243899,1722855993504,-952.95,0.00046575,31]
[334243900,1722855993561,-538.82,0.00046575,31]
[334243901,1722855993614,-500.0,0.00046575,31]
[334243902,1722855993667,-500.0,0.00046575,31]
[334243903,1722855993719,-500.0,0.00046575,31]
[334243904,1722855993772,-702.68,0.00046575,31]
[334243905,1722855993823,-500.0,0.00046575,31]
[334243906,1722855993873,-1814.25,0.00046575,31]
[334243907,1722855993924,-753.6,0.00046575,31]
[334243908,1722855993972,-1640.04,0.00046575,31]
[334243909,1722855994027,-500.0,0.00046575,31]
[334243910,1722855994084,-522.71893501,0.00046575,31]
[334243911,1722855994135,-505.33,0.00046575,31]
[334243912,1722855994186,-790.04,0.00046575,31]
[334243913,1722855994234,-1310.1,0.00046575,31]
[334243914,1722855994285,-994.56,0.00046575,31]
[334243915,1722855994342,-549.92,0.00046575,31]
[334243916,1722855994398,-908.96,0.00046575,31]
[334243917,1722855994451,-500.0,0.00046575,31]
[334243918,1722855994505,-727.99,0.00046575,31]
[334243919,1722855994561,-500.0,0.00046575,31]
[334243920,1722855994610,-9665.63,0.00046575,31]
[334243921,1722855994659,-857.1,0.00046575,31]
[334243922,1722855994706,-500.0,0.00046575,31]
[334243923,1722855994754,-500.0,0.00046575,31]
[334243924,1722855994806,-803.81,0.00046575,31]
[334243925,1722855994863,-825.94,0.00046575,31]
[334243926,1722855994922,-12236.57,0.00046575,120]
[334243927,1722855994979,-500.0,0.00046575,31]
[334243928,1722855995034,-3748.41,0.00046575,31]
[334243929,1722855995084,-500.0,0.00046575,31]
[334243930,1722855995136,-2909.32,0.00046575,31]
[334243931,1722855995187,-500.0,0.00046575,31]
[334243932,1722855995241,-362.07317257,0.00046575,31]
[334243933,1722855995293,-500.0,0.00046575,31]
[334243934,1722855995343,-767.28,0.00046575,31]
[334243935,1722855995394,-4015.88,0.00046575,31]
[334243936,1722855995446,-500.0,0.00046575,31]
[334243937,1722855995499,-500.0,0.00046575,31]
[334243938,1722855995562,-1014.51,0.00046575,31]
[334243939,1722855995615,-1174.29,0.00046575,31]
[334243940,1722855995670,-754.85,0.00046575,31]
[334243941,1722855995724,-1374.17,0.00046575,31]
[334243942,1722855995780,-125.0307565,0.00046575,31]
[334243943,1722855997808,-150.0,0.00030313,14]
[334243944,1722855997861,-150.0,0.00030313,14]
[334243945,1722855997912,-200.0,0.00030313,14]
[334243948,1722856149256,-308.71856903,0.00020898,2]
[334243949,1722856149280,-150.0,0.00021,2]
[334243950,1722856149301,-1162.86940617,0.00021805,2]
[334243951,1722856149323,-150.35419351,0.00021805,2]
[334243952,1722856152388,-151.0,0.0003,120]
[334243953,1722856152436,-151.0,0.0003,120]
[334243954,1722856152490,-9264.38894348,0.00030313,7]
[334243955,1722856152533,-5262.77258998,0.00030313,5]
[334243956,1722856152577,-151.0,0.00031534,120]
[334243957,1722856152621,-151.0,0.00032301,120]
[334243958,1722856152664,-151.0,0.00033068,120]
[334243959,1722856152714,-151.0,0.00034603,120]
[334243960,1722856152767,151.0,0.00034603,120]
[334243997,1722856233576,-478.78844947,0.00019477,2]
[334243998,1722856233586,-932.08917367,0.00020621,2]
[334243999,1722856233597,-156.30570685,0.00020621,7]
[334244000,1722856233607,-11932.01279106,0.00021642,2]
[334244001,1722856233618,-264.73853876,0.00021805,2]
[334244002,1722856233629,-3338.96875994,0.00021916,2]
[334244003,1722856233643,-157.06225992,0.00021916,2]
[334244004,1722856233653,-402.3465429,0.00026583,2]
[334244005,1722856233668,-160.54991199,0.00026604,2]
[334244006,1722856233677,-881.47696693,0.00026839,2]
[334244007,1722856233687,-169.221072,0.00029256,2]
[334244008,1722856233697,-250.0,0.00029431,2]
[334244009,1722856233707,-151.0,0.0003,120]
[334244010,1722856233717,-150.0,0.00030509,14]
[334244011,1722856233728,-150.0,0.00030509,14]
[334244012,1722856233738,-200.0,0.00030509,14]
[334244013,1722856233748,-151.0,0.00031616,120]
[334244014,1722856233759,-151.0,0.00033233,120]
[334244015,1722856233768,-165.12230483,0.0003456,2]
[334244016,1722856233779,-1225.97589647,0.00034603,2]
[334244017,1722856233790,-254.63533274,0.00034603,4]
[334244018,1722856233800,-284.83809153,0.00034603,3]
[334244019,1722856233810,-5617.49765274,0.00034603,4]
[334244020,1722856233820,-9264.38894348,0.00034603,7]
[334244021,1722856233830,-151.0,0.00034849,120]
[334244022,1722856233839,-207.0130742,0.00036376,2]
[334244023,1722856233849,-151.0,0.00036466,120]
[334244024,1722856233859,-151.0,0.00036904,120]
[334244025,1722856233869,-151.0,0.00038082,120]
[334244026,1722856233878,-161.182861,0.00038795,2]
[334244027,1722856233891,-151.0,0.00039205,120]
[334244028,1722856233901,-151.0,0.00039699,120]
[334244029,1722856233911,-7684.50157352,0.000398,120]
[334244063,1722856238603,-443.23639848,0.00021632,2]
[334244064,1722856238613,-284.83809153,0.00034603,3]
[334244065,1722856238623,-2540.64842648,0.000398,120]
[334244066,1722856238632,-200.0,0.0004,2]
[334244067,1722856238646,-150.112233,0.0004,2]
[334244068,1722856238655,-6664.66211483,0.0004053,120]
[334244069,1722856239907,-3560.48788517,0.0004053,120]
[334244070,1722856239923,-5112.574999,0.000407,120]
[334244071,1722856239935,-434.53154744,0.00040995,2]
[334244072,1722856239947,-10225.15,0.00041,120]
[334244073,1722856239960,-500.0,0.00041095,31]
[334244074,1722856239971,-500.0,0.00041095,31]
[334244075,1722856239983,-324.25006526,0.00041095,31]
[334244076,1722856239996,-500.0,0.00041095,31]
[334244077,1722856240007,-500.0,0.00041095,31]
[334244078,1722856240019,-500.0,0.00041095,31]
[334244079,1722856240030,-500.0,0.00041095,31]
[334244080,1722856240041,-491.83768491,0.00041095,31]
[334244081,1722856240052,-500.0,0.00041095,31]
[334244082,1722856240062,-500.0,0.00041095,31]
[334244083,1722856240074,-500.0,0.00041095,31]
[334244084,1722856240085,-1151.77,0.00041095,31]
[334244086,1722856240095,-80.14694729,0.00041095,31]
[334244090,1722856240678,-419.85305271,0.00041095,31]
[334244091,1722856240689,-500.0,0.00041095,31]
[334244092,1722856240699,-691.44,0.00041095,31]
[334244093,1722856240708,-500.0,0.00041095,31]
[334244094,1722856240717,-500.0,0.00041095,31]
[334244095,1722856240726,-285.68555867,0.00041095,31]
[334244096,1722856240737,-500.0,0.00041095,31]
[334244097,1722856240746,-579.04,0.00041095,31]
[334244098,1722856240756,-500.0,0.00041095,31]
[334244099,1722856240766,-500.0,0.00041095,31]
[334244100,1722856240777,-500.0,0.00041095,31]
[334244101,1722856240787,-500.0,0.00041095,2]
[334244102,1722856240798,-10473.2,0.00041095,31]
[334244103,1722856240808,-790.73,0.00041095,31]
[334244104,1722856240819,-511.2,0.00041095,31]
[334244105,1722856240829,-500.0,0.00041095,31]
[334244106,1722856240839,-643.34,0.00041095,31]
[334244107,1722856240849,-500.0,0.00041095,31]
[334244108,1722856240860,-500.0,0.00041095,31]
[334244109,1722856240870,-2242.65,0.00041095,21]
[334244110,1722856240881,-500.0,0.00041095,31]
[334244111,1722856240901,-500.0,0.00041095,31]
[334244112,1722856240914,-500.0,0.00041095,31]
[334244113,1722856240924,-650.81,0.00041095,31]
[334244114,1722856240934,-500.0,0.00041095,31]
[334244115,1722856240944,-500.0,0.00041095,31]
[334244116,1722856240954,-500.0,0.00041095,31]
[334244117,1722856240966,-2467.0,0.00041095,31]
[334244118,1722856240976,-500.0,0.00041095,31]
[334244119,1722856240985,-500.0,0.00041095,31]
[334244120,1722856240995,-500.0,0.00041095,31]
[334244121,1722856241006,-1441.32,0.00041095,31]
[334244122,1722856241017,-1628.53,0.00041095,31]
[334244123,1722856241027,-500.0,0.00041095,31]
[334244124,1722856241037,-500.0,0.00041095,31]
[334244125,1722856241049,-2130.75,0.00041095,31]
[334244126,1722856241064,-500.0,0.00041095,31]
[334244127,1722856241074,-500.0,0.00041095,31]
[334244128,1722856241085,-500.0,0.00041095,31]
[334244129,1722856241104,-500.0,0.00041095,31]
[334244130,1722856241115,-500.0,0.00041095,31]
[334244131,1722856241126,-200.0,0.00041095,7]
[334244132,1722856241138,-1722.44,0.00041095,31]
[334244133,1722856241159,-500.0,0.00041095,31]
[334244134,1722856241170,-500.0,0.00041095,31]
[334244135,1722856241183,-580.15476894,0.00041095,31]
[334244136,1722856241194,-500.0,0.00041095,31]
[334244137,1722856241204,-3090.56,0.00041095,31]
[334244138,1722856241220,-500.0,0.00041095,31]
[334244139,1722856241231,-500.0,0.00041095,31]
[334244140,1722856241241,-500.0,0.00041095,31]
[334244141,1722856241252,-585.92,0.00041095,31]
[334244142,1722856241263,-500.0,0.00041095,31]
[334244143,1722856241274,-500.0,0.00041095,31]
[334244144,1722856241501,-676.34,0.00041095,31]
[334244145,1722856241513,-500.0,0.00041095,31]
[334244146,1722856241524,-742.46,0.00041095,31]
[334244147,1722856241534,-666.78,0.00041095,31]
[334244148,1722856241544,-500.0,0.00041095,31]
[334244149,1722856241555,-500.0,0.00041095,31]
[334244150,1722856241565,-500.0,0.00041095,31]
[334244151,1722856241577,-500.0,0.00041095,31]
[334244152,1722856241588,-500.0,0.00041095,31]
[334244153,1722856241597,-540.65,0.00041095,31]
[334244154,1722856241607,-500.0,0.00041095,31]
[334244155,1722856241617,-547.32,0.00041095,31]
[334244156,1722856241627,-500.0,0.00041095,31]
[334244157,1722856241637,-571.4,0.00041095,31]
[334244158,1722856241654,-500.0,0.00041095,31]
[334244159,1722856241665,-675.52,0.00041095,31]
[334244160,1722856241675,-674.32,0.00041095,31]
[334244161,1722856241686,-6111.86,0.00041095,31]